bitfinex/quotes_SOLUSD_20251031
["timestamp","ask_amount","ask_price","bid_price","bid_amount"]
[1761919088554,5.38342738,188.67,188.59,0.28432314]
[1761919088739,20.592,188.68,188.6,0.72]
[1761919088940,5.38342738,188.65,188.6,0.72]
[1761919089140,5.39915224,188.71,188.62,5.38342738]
[1761919089346,21.322,188.71,188.62,5.38342738]
[1761919089544,5.38342738,188.68,188.63,0.72]
[1761919089740,5.38342738,188.66,188.61,0.72]
[1761919090045,5.38342738,188.65,188.59,24.94651957]
[1761919090350,5.38342738,188.63,188.59,6.02249884]
[1761919090557,5.38342738,188.6,188.56,6.02333124]
[1761919090729,5.38342738,188.58,188.56,0.72]
[1761919091358,5.38342738,188.57,188.53,0.72]
[1761919091659,20.592,188.6,188.53,0.72]
[1761919091841,21.222,188.66,188.55,5.38342738]
[1761919092156,21.222,188.66,188.53,19.28454602]
[1761919092157,5.38342738,188.6,188.56,0.72]
[1761919092536,5.38342738,188.6,188.57,5.30307047]
[1761919092733,20.592,188.64,188.57,5.30307047]
[1761919092932,5.38342738,188.63,188.58,0.72]
[1761919093551,5.38342738,188.59,188.53,0.72]
[1761919093751,20.592,188.51,188.41,0.72]
[1761919094266,5.38342738,188.46,188.41,0.72]
[1761919094464,5.38342738,188.44,188.37,1.00432314]
[1761919094756,5.38342738,188.44,188.39,5.30813737]
[1761919094933,5.38342738,188.45,188.39,5.30813737]
[1761919095132,20.592,188.51,188.43,5.38342738]
[1761919095329,8.17207818,188.52,188.45,8.17207818]
[1761919095764,8.17207818,188.51,188.45,0.72]
[1761919096470,8.17207818,188.53,188.46,8.17207818]
[1761919096768,8.17207818,188.53,188.46,13.47824394]
[1761919096993,8.17207818,188.53,188.45,13.98590518]
[1761919096994,8.17207818,188.52,188.45,0.28432314]
[1761919097148,8.17207818,188.52,188.46,0.72]
[1761919097551,0.63,188.58,188.46,8.89207818]
[1761919097781,8.17207818,188.53,188.46,0.72]
[1761919097982,0.63,188.6,188.5,8.17207818]
[1761919098285,8.17207818,188.56,188.49,8.45640132]
[1761919098453,0.63,188.61,188.49,8.45640132]
[1761919098454,8.17207818,188.59,188.52,8.17207818]
[1761919098775,8.17207818,188.59,188.54,5.30391428]
[1761919099080,8.17207818,188.6,188.54,5.30391428]
[1761919099271,0.63,188.66,188.55,0.66]
[1761919099447,8.17207818,188.64,188.57,8.17207818]
[1761919099851,8.17207818,188.64,188.58,0.66]
[1761919100053,20.592,188.67,188.58,0.66]
[1761919100362,8.17207818,188.64,188.58,0.66]
[1761919100764,8.17207818,188.64,188.59,5.30250808]
[1761919100967,0.1,188.71,188.6,10.07315083]
[1761919101284,8.17207818,188.69,188.62,8.17207818]
[1761919101492,5.39931416,188.71,188.61,0.66]
[1761919101493,6.02931416,188.71,188.61,0.66]
[1761919101661,0.1,188.71,188.61,0.66]
[1761919101868,8.17207818,188.68,188.62,0.28432314]
[1761919102363,8.17207818,188.68,188.63,0.66]
[1761919102792,8.17207818,188.68,188.64,5.30110262]
[1761919103175,8.17207818,188.68,188.64,5.96110262]
[1761919103372,20.692,188.71,188.64,5.30110262]
[1761919103589,8.17207818,188.7,188.65,0.94432314]
[1761919103775,0.1,188.71,188.67,8.17207818]
[1761919104090,0.1,188.71,188.68,8.17207818]
[1761919104515,0.1,188.71,188.69,0.66]
[1761919104792,0.1,188.71,188.66,5.30038458]
[1761919104793,8.17207818,188.7,188.66,5.30038458]
[1761919105291,8.27207818,188.71,188.66,5.96038458]
[1761919105604,8.17207818,188.68,188.61,0.28432314]
[1761919105769,8.17207818,188.62,188.56,0.66]
[1761919105972,8.17207818,188.62,188.57,0.66]
[1761919106184,20.592,188.68,188.58,8.17207818]
[1761919106185,8.17207818,188.64,188.58,8.17207818]
[1761919106386,8.17207818,188.63,188.57,8.83207818]
[1761919106766,8.17207818,188.63,188.58,5.96278926]
[1761919106970,8.17207818,188.64,188.58,14.13486744]
[1761919107295,5.29773521,188.76,188.64,9.78882769]
[1761919107593,8.17207818,188.7,188.64,8.17207818]
[1761919107772,8.17207818,188.7,188.63,8.17207818]
[1761919107967,8.17207818,188.69,188.63,8.17207818]
[1761919108167,8.17207818,188.69,188.63,8.83207818]
[1761919108379,8.17207818,188.68,188.63,0.66]
[1761919108783,8.17207818,188.65,188.59,18.55877829]
[1761919109018,8.17207818,188.65,188.6,0.65]
[1761919109322,5.2999206,188.69,188.61,8.17207818]
[1761919109323,8.17207818,188.68,188.61,8.17207818]
[1761919109823,8.17207818,188.68,188.61,8.82207818]
[1761919109986,0.63,188.67,188.6,8.17207818]
[1761919110181,5.2999206,188.69,188.6,8.17207818]
[1761919110427,5.39913914,188.71,188.65,8.17207818]
[1761919110734,0.1,188.71,188.66,8.17207818]
[1761919110938,0.1,188.71,188.68,8.17207818]
[1761919111142,0.1,188.71,188.64,0.93432314]
[1761919111143,0.1,188.71,188.69,8.17207818]
[1761919111643,0.1,188.71,188.68,8.17207818]
[1761919111808,0.1,188.71,188.67,8.17207818]
[1761919112008,0.1,188.71,188.66,8.17207818]
[1761919112232,8.17207818,188.68,188.61,8.17207818]
[1761919112545,8.17207818,188.67,188.6,8.82207818]
[1761919112902,8.17207818,188.65,188.59,5.30237056]
[1761919113936,8.17207818,188.63,188.57,5.30292823]
[1761919114108,0.63,188.64,188.52,9.78882769]
[1761919114109,8.17207818,188.62,188.55,27.38479363]
[1761919114305,5.3010503,188.65,188.57,8.17207818]
[1761919114629,8.27207818,188.71,188.64,8.17207818]
[1761919114830,8.17207818,188.69,188.62,8.17207818]
[1761919115438,0.63,188.69,188.61,8.17207818]
[1761919115607,20.692,188.71,188.63,8.17207818]
[1761919115807,20.692,188.71,188.65,8.17207818]
[1761919116010,20.692,188.71,188.66,5.30054065]
[1761919116338,0.63,188.7,188.61,0.65]
[1761919116644,0.63,188.7,188.63,8.17207818]
[1761919116824,20.692,188.71,188.65,8.17207818]
[1761919117154,0.1,188.71,188.69,8.17207818]
[1761919118045,0.1,188.71,188.67,13.47219783]
[1761919118416,0.1,188.71,188.67,8.17207818]
[1761919118625,6.02917702,188.71,188.65,8.17207818]
[1761919118823,20.592,188.68,188.53,26.51970635]
[1761919119130,8.17207818,188.66,188.57,0.65]
[1761919119440,8.17207818,188.66,188.57,8.82207818]
[1761919119633,8.80207818,188.66,188.57,8.82207818]
[1761919119829,0.63,188.65,188.57,0.65]
[1761919120018,0.63,188.65,188.57,5.95290412]
[1761919120222,5.93085356,188.65,188.57,5.95290412]
[1761919120419,5.93085356,188.65,188.57,0.65]
[1761919121340,29.39407818,188.65,188.57,5.95304295]
[1761919121554,8.17207818,188.63,188.57,14.12512113]
[1761919122054,8.17207818,188.63,188.57,27.38279732]
[1761919122362,28.76407818,188.65,188.58,8.82207818]
[1761919122520,20.592,188.65,188.59,8.17207818]
[1761919122719,20.592,188.65,188.59,8.82207818]
[1761919122919,20.592,188.65,188.57,5.30304295]
[1761919122920,8.17207818,188.61,188.57,5.30304295]
[1761919123120,8.17207818,188.61,188.55,5.3036192]
[1761919123347,8.17207818,188.6,188.55,5.3036192]
[1761919123542,8.17207818,188.61,188.55,19.21270167]
[1761919123837,8.17207818,188.61,188.55,27.38477985]
[1761919124041,8.17207818,188.6,188.55,5.9536192]
[1761919124239,39.14492614,188.65,188.52,23.15447005]
[1761919124240,8.17207818,188.56,188.52,9.60943642]
[1761919124458,8.17207818,188.54,188.52,14.91390481]
[1761919124729,8.17207818,188.54,188.52,9.60943642]
[1761919124952,8.17207818,188.55,188.52,9.60943642]
[1761919125153,8.17207818,188.57,188.52,14.9138083]
[1761919125460,8.17207818,188.57,188.52,9.60943642]
[1761919125840,8.17207818,188.56,188.52,9.60943642]
[1761919126041,21.222,188.59,188.52,14.91389855]
[1761919126237,8.17207818,188.58,188.52,23.73597673]
[1761919126450,28.76407818,188.59,188.53,0.65]
[1761919126850,8.17207818,188.58,188.53,0.65]
[1761919127846,8.17207818,188.57,188.53,0.65]
[1761919128031,8.17207818,188.59,188.53,8.82207818]
[1761919128236,8.17207818,188.6,188.55,5.30363298]
[1761919128459,8.17207818,188.58,188.55,5.30363298]
[1761919128853,8.17207818,188.58,188.54,5.30388498]
[1761919129456,8.17207818,188.58,188.54,5.95388498]
[1761919129647,0.63,188.62,188.54,5.95388498]
[1761919129855,8.17207818,188.58,188.54,0.65]
[1761919130057,26.78322002,188.69,188.57,8.17207818]
[1761919130058,21.222,188.66,188.57,8.17207818]
[1761919130256,8.17207818,188.63,188.58,5.30278926]
[1761919130456,8.17207818,188.6,188.56,5.30309782]
[1761919130838,8.17207818,188.61,188.56,0.65]
[1761919131039,8.17207818,188.6,188.56,0.65]
[1761919131262,8.17207818,188.6,188.54,8.82207818]
[1761919131565,8.17207818,188.61,188.55,8.82207818]
[1761919131939,8.17207818,188.6,188.55,0.65]
[1761919132346,8.17207818,188.61,188.56,13.47542989]
[1761919132549,8.17207818,188.61,188.56,26.73380918]
[1761919132757,8.17207818,188.61,188.57,0.65]
[1761919134854,8.17207818,188.61,188.57,5.95293582]
[1761919135060,8.17207818,188.6,188.57,5.95293582]
[1761919135365,8.17207818,188.61,188.57,5.95293582]
[1761919135761,8.17207818,188.6,188.57,5.30293582]
[1761919136078,8.17207818,188.61,188.57,5.95293582]
[1761919136576,8.17207818,188.62,188.58,0.65]
[1761919137374,8.17207818,188.62,188.57,18.56061201]
[1761919137574,8.17207818,188.62,188.57,19.21061201]
[1761919137770,8.17207818,188.62,188.57,5.30293582]
[1761919137974,8.17207818,188.59,188.56,5.30334261]
[1761919138158,8.17207818,188.59,188.54,14.12571994]
[1761919138360,5.30117813,188.64,188.56,8.17207818]
[1761919138564,8.17207818,188.61,188.57,5.30307047]
[1761919138864,8.17207818,188.62,188.57,5.95307047]
[1761919139068,5.93117813,188.64,188.57,5.95307047]
[1761919139069,8.17207818,188.61,188.57,5.95307047]
[1761919141185,8.17207818,188.62,188.58,0.67]
[1761919141382,5.93116742,188.64,188.58,0.67]
[1761919141565,8.17207818,188.61,188.57,5.30307047]
[1761919141766,8.17207818,188.61,188.55,8.17207818]
[1761919141976,8.17207818,188.61,188.56,5.30335171]
[1761919142196,8.17207818,188.6,188.56,5.30335171]
[1761919142376,8.17207818,188.57,188.52,14.91386054]
[1761919142570,8.17207818,188.56,188.53,0.67]
[1761919142776,8.17207818,188.56,188.52,14.91386054]
[1761919142777,8.17207818,188.55,188.52,14.91386054]
[1761919143259,8.17207818,188.57,188.53,0.67]
[1761919144058,8.17207818,188.57,188.54,5.30391428]
[1761919144273,8.17207818,188.58,188.54,5.30391428]
[1761919144590,8.17207818,188.58,188.54,5.97391428]
[1761919144887,8.17207818,188.58,188.54,5.30391428]
[1761919145192,8.17207818,188.58,188.54,5.97391428]
[1761919145494,8.17207818,188.57,188.54,5.30391428]
[1761919145937,8.17207818,188.58,188.55,0.67]
[1761919146122,8.17207818,188.58,188.54,5.30391428]
[1761919146432,8.17207818,188.55,188.52,9.60943642]
[1761919146594,8.17207818,188.53,188.52,9.60943642]
[1761919146797,0.63,188.54,188.52,9.60943642]
[1761919146991,8.17207818,188.53,188.52,9.60943642]
[1761919147406,28.76407818,188.55,188.52,9.60943642]
[1761919147819,8.17207818,188.54,188.52,9.60943642]
[1761919148895,8.17207818,188.53,188.52,9.60943642]
[1761919149095,25.89567312,188.55,188.52,9.60943642]
[1761919149320,8.17207818,188.53,188.52,9.60943642]
[1761919149726,8.17207818,188.55,188.52,9.60943642]
[1761919149925,8.17207818,188.55,188.52,14.91383281]
[1761919150415,8.17207818,188.55,188.52,9.60943642]
[1761919151349,21.222,188.57,188.53,0.67]
[1761919151350,20.592,188.57,188.53,0.67]
[1761919151531,8.17207818,188.58,188.53,0.67]
[1761919151846,8.17207818,188.58,188.53,8.84207818]
[1761919152019,8.17207818,188.58,188.52,36.3471382]
[1761919152219,0.63,188.65,188.55,26.73479363]
[1761919152443,0.63,188.65,188.55,5.30363298]
[1761919152444,8.17207818,188.6,188.55,5.30363298]
[1761919152634,8.17207818,188.6,188.55,18.56271545]
[1761919152841,8.17207818,188.6,188.56,0.67]
[1761919153024,21.222,188.64,188.54,5.30387765]
[1761919153025,8.17207818,188.59,188.54,5.30387765]
[1761919153226,8.17207818,188.61,188.55,8.17207818]
[1761919153434,8.17207818,188.62,188.56,8.84207818]
[1761919153637,8.17207818,188.61,188.56,0.67]
[1761919153950,8.17207818,188.59,188.54,5.30387765]
[1761919154361,8.17207818,188.57,188.52,9.60943642]
[1761919154646,8.17207818,188.55,188.52,9.60943642]
[1761919154823,8.17207818,188.54,188.52,9.60943642]
[1761919155150,8.17207818,188.56,188.52,9.60943642]
[1761919155354,8.17207818,188.55,188.52,9.60943642]
[1761919155720,8.17207818,188.54,188.52,9.60943642]
[1761919156536,8.17207818,188.55,188.52,14.91390454]
[1761919156726,8.17207818,188.55,188.52,9.60943642]
[1761919157330,5.37602892,188.55,188.52,9.60943642]
[1761919158444,5.37602892,188.55,188.52,14.91376319]
[1761919158617,5.37602892,188.55,188.52,9.60943642]
[1761919158814,5.37602892,188.53,188.52,9.60943642]
[1761919159045,6.00602892,188.53,188.52,9.60943642]
[1761919159249,5.37602892,188.53,188.52,9.60943642]
[1761919159749,5.37602892,188.54,188.52,9.60943642]
[1761919159923,5.37602892,188.55,188.52,9.60943642]
[1761919160130,5.37602892,188.54,188.52,9.60943642]
[1761919160337,5.37602892,188.55,188.52,9.60943642]
[1761919160642,5.37602892,188.54,188.52,9.60943642]
[1761919161642,5.37602892,188.53,188.52,9.60943642]
[1761919162452,6.00602892,188.53,188.52,9.60943642]
[1761919162945,11.31022453,188.53,188.52,9.60943642]
[1761919164122,20.592,188.57,188.52,10.27943642]
[1761919164325,5.37602892,188.55,188.52,9.60943642]
[1761919164735,5.37602892,188.55,188.52,14.91384233]
[1761919165153,5.37602892,188.55,188.52,9.60943642]
[1761919165325,26.52514168,188.57,188.52,9.60943642]
[1761919165326,5.37602892,188.54,188.52,9.60943642]
[1761919166231,11.30995135,188.54,188.52,9.60943642]
[1761919166533,10.67995135,188.54,188.52,9.60943642]
[1761919166740,5.37602892,188.53,188.52,9.60943642]
[1761919166959,6.00602892,188.53,188.52,9.60943642]
[1761919168136,122.692,188.57,188.52,9.60943642]
[1761919168137,127.99518586,188.57,188.52,9.60943642]
[1761919168329,5.37602892,188.55,188.52,9.60943642]
[1761919168531,5.37602892,188.54,188.52,9.60943642]
[1761919169257,5.37602892,188.53,188.52,9.60943642]
[1761919169556,26.59802892,188.53,188.52,9.60943642]
[1761919170076,41.69105222,188.53,188.52,9.60943642]
[1761919172847,41.06105222,188.53,188.52,9.60943642]
[1761919173049,41.69105222,188.53,188.52,9.60943642]
[1761919173262,25.89619561,188.53,188.52,9.60943642]
[1761919173562,31.27222453,188.53,188.52,9.60943642]
[1761919173767,20.592,188.53,188.52,9.60943642]
[1761919173944,25.96802892,188.53,188.52,9.60943642]
[1761919174261,31.27222453,188.53,188.52,9.60943642]
[1761919175892,25.96802892,188.53,188.52,9.60943642]
[1761919176050,31.27222453,188.53,188.52,9.60943642]
[1761919177450,41.06105222,188.53,188.52,9.60943642]
[1761919177748,21.09905222,188.53,188.52,9.60943642]
[1761919178548,25.96802892,188.53,188.52,9.60943642]
[1761919179438,0.28432314,188.61,188.52,15.61391339]
[1761919179439,5.30194581,188.61,188.52,15.61391339]
[1761919179640,5.30194581,188.61,188.53,6.07602892]
[1761919179845,5.37602892,188.6,188.53,6.07602892]
[1761919180045,5.37602892,188.59,188.53,0.7]
[1761919180551,5.37602892,188.6,188.54,6.00369863]
[1761919180751,5.30169628,188.62,188.56,5.37602892]
[1761919180952,20.592,188.6,188.57,0.7]
[1761919181354,25.96802892,188.61,188.57,0.7]
[1761919181568,5.37602892,188.61,188.55,0.7]
[1761919181769,5.37602892,188.61,188.56,0.7]
[1761919182354,10.6780349,188.61,188.56,6.00322918]
[1761919182553,5.37602892,188.61,188.56,6.00322918]
[1761919182748,5.37602892,188.61,188.57,0.7]
[1761919182972,25.96802892,188.62,188.57,0.7]
[1761919183553,25.8936761,188.62,188.57,0.7]
[1761919183761,31.26970502,188.62,188.57,0.7]
[1761919183960,5.37602892,188.61,188.57,0.7]
[1761919184777,25.96802892,188.62,188.57,6.00305161]
[1761919184975,0.63,188.69,188.58,5.37602892]
[1761919185176,5.37602892,188.65,188.58,6.07602892]
[1761919185355,5.37602892,188.66,188.59,6.07602892]
[1761919185891,5.37602892,188.66,188.6,0.7]
[1761919186256,10.67677658,188.66,188.6,6.00205064]
[1761919186477,5.30074766,188.66,188.6,6.00205064]
[1761919186684,10.67677658,188.66,188.6,6.00205064]
[1761919187063,10.67677658,188.66,188.61,0.7]
[1761919188171,5.30074766,188.66,188.61,0.7]
[1761919188479,10.67677658,188.66,188.61,6.00193361]
[1761919188693,10.67677658,188.66,188.62,0.7]
[1761919189267,5.37602892,188.65,188.62,0.7]
[1761919189471,10.67700512,188.65,188.59,0.7]
[1761919190663,20.592,188.66,188.61,5.37602892]
[1761919190863,5.29947018,188.7,188.64,5.37602892]
[1761919191182,10.6754991,188.7,188.65,0.7]
[1761919191658,26.06802892,188.71,188.65,6.00073829]
[1761919191857,26.06802892,188.71,188.66,0.7]
[1761919192057,0.1,188.71,188.66,0.7]
[1761919192491,0.1,188.71,188.66,6.07602892]
[1761919192986,0.1,188.71,188.67,0.7]
[1761919193792,0.1,188.71,188.68,5.2999788]
[1761919194287,0.1,188.71,188.68,5.9999788]
[1761919194580,0.1,188.71,188.66,0.7]
[1761919194781,0.1,188.71,188.67,0.7]
[1761919194985,5.37602892,188.7,188.63,10.67741258]
[1761919195190,5.37602892,188.64,188.61,0.7]
[1761919195359,5.37602892,188.66,188.61,0.7]
[1761919195784,10.67665166,188.66,188.61,0.7]
[1761919195959,10.67665166,188.66,188.61,6.00185763]
[1761919196357,10.67665166,188.66,188.62,0.7]
[1761919196588,5.37602892,188.66,188.62,0.7]
[1761919196884,5.37602892,188.67,188.62,0.7]
[1761919197085,5.37602892,188.7,188.63,5.37602892]
[1761919197263,5.37602892,188.69,188.62,6.07602892]
[1761919197583,5.37602892,188.69,188.61,18.55672216]
[1761919197584,5.37602892,188.69,188.63,6.07602892]
[1761919197766,5.37602892,188.7,188.65,5.30082162]
[1761919198170,5.37602892,188.69,188.66,0.7]
[1761919198865,5.37602892,188.7,188.66,0.7]
[1761919199569,26.06802892,188.71,188.66,0.7]
[1761919200088,25.991137,188.71,188.66,6.00040853]
[1761919200263,0.1,188.73,188.7,5.37602892]
[1761919200465,5.37602892,188.8,188.72,5.37602892]
[1761919200762,5.37602892,188.79,188.72,5.37602892]
[1761919200960,5.37602892,188.79,188.68,0.28432314]
[1761919200961,5.37602892,188.74,188.67,0.53002597]
[1761919201265,3.54654206,188.81,188.68,0.66]
[1761919201266,5.37602892,188.73,188.68,0.66]
[1761919201463,5.37602892,188.69,188.64,0.66]
[1761919201668,5.37602892,188.66,188.61,0.66]
[1761919202218,9.78882769,188.72,188.64,5.37602892]
[1761919202500,5.37602892,188.65,188.58,5.30256751]
[1761919202676,5.37602892,188.66,188.6,5.37602892]
[1761919203075,9.78882769,188.7,188.61,0.66]
[1761919203076,5.37602892,188.65,188.61,0.66]
[1761919203272,5.37602892,188.63,188.61,0.66]
[1761919203500,0.72,188.67,188.58,0.66]
[1761919203501,5.37602892,188.62,188.58,0.66]
[1761919203679,5.37602892,188.6,188.52,9.60943642]
[1761919203880,5.37602892,188.57,188.53,0.66]
[1761919204477,5.37602892,188.58,188.53,0.66]
[1761919204685,5.37602892,188.58,188.53,5.96417575]
[1761919204906,5.37602892,188.59,188.54,0.66]
[1761919205076,25.96802892,188.62,188.56,5.37602892]
[1761919205476,5.30082162,188.65,188.57,6.03602892]
[1761919205679,5.37602892,188.64,188.58,0.66]
[1761919205943,21.312,188.66,188.6,5.37602892]
[1761919205944,20.592,188.66,188.6,5.37602892]
[1761919206101,5.37602892,188.68,188.62,5.30166472]
[1761919206278,0.72,188.71,188.58,0.94432314]
[1761919206279,5.29922642,188.71,188.58,0.94432314]
[1761919206483,5.37602892,188.67,188.61,5.37602892]
[1761919206975,5.29922642,188.71,188.63,5.37602892]
[1761919207176,5.37602892,188.68,188.64,0.66]
[1761919207377,5.37602892,188.65,188.58,19.50405087]
[1761919207583,5.37602892,188.65,188.59,0.66]
[1761919208099,5.37602892,188.65,188.59,5.96249444]
[1761919208100,5.37602892,188.64,188.59,5.96249444]
[1761919208432,5.37602892,188.64,188.53,20.592]
[1761919208433,5.37602892,188.6,188.54,0.66]
[1761919208582,5.37602892,188.59,188.54,0.66]
[1761919208779,5.37602892,188.59,188.53,23.94071357]
[1761919208780,5.37602892,188.57,188.53,5.30419561]
[1761919208999,25.96802892,188.65,188.55,0.66]
[1761919209000,5.37602892,188.6,188.55,0.66]
[1761919209198,6.01996872,188.69,188.55,0.66]
[1761919209484,5.37602892,188.67,188.61,5.37602892]
[1761919210218,5.37602892,188.67,188.62,5.96166472]
[1761919210800,5.37602892,188.67,188.6,0.66]
[1761919210801,5.37602892,188.66,188.6,0.66]
[1761919211102,5.37602892,188.66,188.6,11.33825585]
[1761919211502,5.37602892,188.67,188.61,6.03602892]
[1761919211829,5.37602892,188.68,188.62,6.03602892]
[1761919212027,5.37602892,188.69,188.63,5.9613629]
[1761919212403,5.37602892,188.69,188.64,0.66]
[1761919212598,10.67573,188.69,188.64,0.66]
[1761919212811,5.37602892,188.68,188.62,10.67769]
[1761919213010,5.37602892,188.68,188.64,0.66]
[1761919213202,20.592,188.7,188.64,6.03602892]
[1761919213203,25.96802892,188.7,188.64,6.03602892]
[1761919213439,5.37602892,188.76,188.67,5.37602892]
[1761919213440,13.24489667,188.76,188.67,5.37602892]
[1761919213731,0.72,188.77,188.69,5.37602892]
[1761919214029,5.37602892,188.76,188.7,11.33526827]
[1761919214207,10.67385122,188.76,188.7,0.66]
[1761919214405,10.67385122,188.76,188.7,5.95933915]
[1761919214626,10.67385122,188.76,188.7,11.33536807]
[1761919214843,5.37602892,188.76,188.71,0.66]
[1761919215129,20.592,188.76,188.69,5.37602892]
[1761919215336,20.592,188.76,188.71,5.37602892]
[1761919215506,5.37602892,188.74,188.68,5.37602892]
[1761919215705,5.37602892,188.7,188.64,6.03602892]
[1761919215902,5.37602892,188.67,188.64,0.66]
[1761919216118,5.37602892,188.65,188.61,5.30193467]
[1761919216316,5.37602892,188.62,188.57,0.66]
[1761919216512,5.37602892,188.65,188.59,5.37602892]
[1761919216718,0.72,188.68,188.59,5.37602892]
[1761919217023,5.37602892,188.64,188.6,0.66]
[1761919217333,8.16114978,188.64,188.6,0.66]
[1761919217507,8.16114978,188.63,188.6,0.66]
[1761919217905,8.16114978,188.61,188.52,9.60943642]
[1761919218219,8.16114978,188.55,188.52,14.91377281]
[1761919218535,8.16114978,188.6,188.54,8.16114978]
[1761919218823,8.16114978,188.58,188.53,8.82114978]
[1761919219126,8.16114978,188.61,188.56,8.16114978]
[1761919219440,8.16114978,188.61,188.54,0.66]
[1761919219611,21.312,188.65,188.55,8.16114978]
[1761919219803,8.16114978,188.6,188.55,8.16114978]
[1761919220115,8.16114978,188.6,188.56,0.66]
[1761919220313,6.02112581,188.64,188.56,0.66]
[1761919220518,8.16114978,188.6,188.56,5.96333138]
[1761919220908,8.16114978,188.6,188.57,0.66]
[1761919221247,8.16114978,188.58,188.5,0.69]
[1761919221416,8.16114978,188.53,188.5,0.69]
[1761919221738,0.67,188.59,188.5,0.69]
[1761919221739,8.16114978,188.54,188.5,0.69]
[1761919221905,8.16114978,188.53,188.5,0.69]
[1761919222107,8.16114978,188.53,188.47,5.99579896]
[1761919222418,0.67,188.58,188.49,0.69]
[1761919222419,5.30355263,188.56,188.49,0.69]
[1761919222618,8.16114978,188.53,188.49,0.69]
[1761919222831,8.16114978,188.53,188.45,8.16114978]
[1761919223005,8.16114978,188.53,188.46,0.69]
[1761919223541,8.83114978,188.53,188.43,0.89]
[1761919223707,10.45882769,188.53,188.43,0.2]
[1761919223913,18.61997747,188.53,188.43,0.89]
[1761919224133,18.61997747,188.53,188.43,0.2]
[1761919224318,23.92417308,188.53,188.44,0.69]
[1761919224828,23.92417308,188.53,188.43,0.2]
[1761919226007,20.592,188.5,188.43,0.2]
[1761919226208,8.16114978,188.44,188.43,0.2]
[1761919227318,0.67,188.53,188.43,6.19701056]
[1761919227524,8.16114978,188.45,188.43,6.19701056]
[1761919227719,10.45882769,188.56,188.44,0.69]
[1761919227931,10.45882769,188.56,188.43,5.50701056]
[1761919227932,8.16114978,188.45,188.43,0.2]
[1761919228318,8.16114978,188.48,188.45,5.30644733]
[1761919228507,8.16114978,188.5,188.46,0.69]
[1761919228939,8.16114978,188.49,188.46,0.69]
[1761919229328,8.16114978,188.47,188.43,5.50699012]
[1761919229528,8.16114978,188.44,188.43,0.2]
[1761919230056,20.592,188.49,188.43,6.22699945]
[1761919230215,8.16114978,188.45,188.43,6.22699945]
[1761919230534,0.71,188.5,188.35,0.72]
[1761919230535,20.592,188.41,188.35,0.72]
[1761919230729,20.592,188.41,188.33,5.50957936]
[1761919230730,8.16114978,188.36,188.33,5.50957936]
[1761919231110,8.16114978,188.36,188.34,0.72]
[1761919231330,8.16114978,188.39,188.34,0.72]
[1761919231535,8.16114978,188.41,188.35,8.16114978]
[1761919231739,8.16114978,188.4,188.35,8.16114978]
[1761919231921,8.16114978,188.4,188.34,0.72]
[1761919231922,8.16114978,188.4,188.36,0.72]
[1761919232323,8.16114978,188.41,188.37,18.58045336]
[1761919232520,9.78882769,188.47,188.37,18.58045336]
[1761919232521,8.16114978,188.42,188.37,18.58045336]
[1761919232840,8.16114978,188.41,188.38,0.72]
[1761919233015,8.16114978,188.39,188.37,5.30870096]
[1761919233441,8.16114978,188.4,188.37,6.02870096]
[1761919233743,8.16114978,188.41,188.37,6.02870096]
[1761919233923,8.16114978,188.41,188.37,18.58045336]
[1761919234111,8.16114978,188.41,188.38,0.72]
[1761919234438,8.16114978,188.41,188.39,5.30813737]
[1761919234735,20.592,188.45,188.39,0.72]
[1761919234949,8.16114978,188.41,188.38,0.72]
[1761919235716,8.16114978,188.4,188.38,0.72]
[1761919236334,8.16114978,188.4,188.39,5.30813737]
[1761919236943,25.89867208,188.45,188.39,6.02813737]
[1761919236944,8.16114978,188.42,188.39,6.02813737]
[1761919237317,20.592,188.45,188.4,0.72]
[1761919237318,8.16114978,188.44,188.4,0.72]
[1761919237518,8.16114978,188.43,188.4,0.72]
[1761919238152,8.16114978,188.44,188.4,0.72]
[1761919238332,8.16114978,188.44,188.41,5.3075739]
[1761919238846,5.30561218,188.48,188.41,0.72]
[1761919238847,8.16114978,188.43,188.41,0.72]
[1761919239947,8.16114978,188.43,188.39,5.30813737]
[1761919240150,8.16114978,188.46,188.42,0.72]
[1761919240453,8.16114978,188.45,188.43,5.30701056]
[1761919240635,8.16114978,188.45,188.42,6.0272791]